[Event "Titled Tuesday Blitz March 21 Early 2023"]
[White "Ronka, Erik"]
[Black "wqws"]
[WhiteFideId "505080"]
[WhiteElo "2264"]
[BlackElo "2623"]
[Result "0-1"]
[Round "04"]
[TimeControl "180+2"]
[Date "2023.03.21"]
[WhiteClock "0:00:02"]
[BlackClock "0:00:20"]

1. e4 {[%clk 0:02:59]}  c5 {[%clk 0:02:59]} 2. Nf3 {[%clk 0:02:59]}  d6 {[%clk 0:03:00]} 3. d4 {[%clk 0:02:58]}  cxd4 {[%clk 0:03:01]} 4. Nxd4 {[%clk 0:02:59]}  Nf6 {[%clk 0:03:01]} 5. Nc3 {[%clk 0:02:59]}  a6 {[%clk 0:03:02]} 6. Nb3 {[%clk 0:02:53]}  e6 {[%clk 0:03:01]} 7. g4 {[%clk 0:02:52]}  b5 {[%clk 0:03:01]} 8. Bg2 {[%clk 0:02:50]}  Bb7 {[%clk 0:03:01]} 9. g5 {[%clk 0:02:50]}  Nfd7 {[%clk 0:03:01]} 10. f4 {[%clk 0:02:49]}  Be7 {[%clk 0:02:58]} 11. Qe2 {[%clk 0:02:31]}  h6 {[%clk 0:02:57]} 12. h4 {[%clk 0:02:30]}  hxg5 {[%clk 0:02:56]} 13. hxg5 {[%clk 0:02:31]}  Rxh1+ {[%clk 0:02:56]} 14. Bxh1 {[%clk 0:02:32]}  Nc6 {[%clk 0:02:56]} 15. Be3 {[%clk 0:02:22]}  Qc7 {[%clk 0:02:43]} 16. O-O-O {[%clk 0:01:55]}  O-O-O {[%clk 0:02:43]} 17. Qh5 {[%clk 0:01:50]}  b4 {[%clk 0:02:21]} 18. Ne2 {[%clk 0:01:46]}  g6 {[%clk 0:02:14]} 19. Qh7 {[%clk 0:01:43]}  Rf8 {[%clk 0:01:57]} 20. Qh3 {[%clk 0:01:24]}  Kb8 {[%clk 0:01:51]} 21. Kb1 {[%clk 0:01:20]}  a5 {[%clk 0:01:48]} 22. f5 {[%clk 0:01:20]}  a4 {[%clk 0:01:44]} 23. Nbd4 {[%clk 0:01:19]}  Nxd4 {[%clk 0:01:32]} 24. Nxd4 {[%clk 0:01:20]}  e5 {[%clk 0:01:22]} 25. Nb5 {[%clk 0:00:55]}  Qc6 {[%clk 0:01:05]} 26. f6 {[%clk 0:00:55]}  Rc8 {[%clk 0:00:52]} 27. Rd2 {[%clk 0:00:35]}  Qxb5 {[%clk 0:00:42]} 28. fxe7 {[%clk 0:00:34]}  b3 {[%clk 0:00:41]} 29. cxb3 {[%clk 0:00:23]}  axb3 {[%clk 0:00:39]} 30. axb3 {[%clk 0:00:22]}  Nc5 {[%clk 0:00:25]} 31. Bxc5 {[%clk 0:00:21]}  Qxc5 {[%clk 0:00:23]} 32. Qf1 {[%clk 0:00:13]}  Qc7 {[%clk 0:00:19]} 33. Qd3 {[%clk 0:00:09]}  Qxe7 {[%clk 0:00:14]} 34. Qxd6+ {[%clk 0:00:09]}  Qxd6 {[%clk 0:00:14]} 35. Rxd6 {[%clk 0:00:10]}  Rh8 {[%clk 0:00:15]} 36. Bf3 {[%clk 0:00:09]}  Rh3 {[%clk 0:00:15]} 37. Bd1 {[%clk 0:00:04]}  Bxe4+ {[%clk 0:00:14]} 38. Ka2 {[%clk 0:00:05]}  Rd3 {[%clk 0:00:13]} 39. Rxd3 {[%clk 0:00:02]}  Bxd3 {[%clk 0:00:14]} 40. b4 {[%clk 0:00:03]}  e4 {[%clk 0:00:14]} 41. Kb3 {[%clk 0:00:03]}  e3 {[%clk 0:00:15]} 42. Kc3 {[%clk 0:00:03]}  e2 {[%clk 0:00:15]} 43. Bxe2 {[%clk 0:00:03]}  Bxe2 {[%clk 0:00:16]} 44. Kd4 {[%clk 0:00:04]}  Kc7 {[%clk 0:00:16]} 45. Ke5 {[%clk 0:00:05]}  Kb6 {[%clk 0:00:17]} 46. Kf6 {[%clk 0:00:05]}  Kb5 {[%clk 0:00:17]} 47. Kxf7 {[%clk 0:00:04]}  Bd3 {[%clk 0:00:18]} 48. Kf6 {[%clk 0:00:04]}  Bf5 {[%clk 0:00:19]} 49. Ke5 {[%clk 0:00:02]}  Kxb4 {[%clk 0:00:20]} 0-1


[Site "https://www.chess.com"]

[Event "Titled Tuesday Blitz March 21 Early 2023"]
[White "Aaditya Dhingra"]
[Black "Tarasova, Viktoriya"]
[WhiteFideId "25678191"]
[BlackFideId "4175840"]
[WhiteElo "2083"]
[BlackElo "2182"]
[Result "1-0"]
[Round "04"]
[TimeControl "180+2"]
[Date "2023.03.21"]
[WhiteClock "0:00:11"]
[BlackClock "0:00:02"]

1. c4 {[%clk 0:03:00]}  e5 {[%clk 0:02:59]} 2. Nc3 {[%clk 0:02:59]}  Nf6 {[%clk 0:02:59]} 3. Nf3 {[%clk 0:02:58]}  Nc6 {[%clk 0:02:59]} 4. g3 {[%clk 0:02:57]}  Bb4 {[%clk 0:02:59]} 5. Bg2 {[%clk 0:02:56]}  O-O {[%clk 0:02:59]} 6. O-O {[%clk 0:02:55]}  e4 {[%clk 0:02:59]} 7. Ng5 {[%clk 0:02:53]}  Bxc3 {[%clk 0:02:58]} 8. bxc3 {[%clk 0:02:43]}  Re8 {[%clk 0:02:58]} 9. d3 {[%clk 0:02:41]}  exd3 {[%clk 0:02:55]} 10. exd3 {[%clk 0:02:40]}  d6 {[%clk 0:02:55]} 11. Rb1 {[%clk 0:02:29]}  h6 {[%clk 0:02:40]} 12. Nh3 {[%clk 0:02:16]}  Ne5 {[%clk 0:01:48]} 13. f4 {[%clk 0:01:43]}  Neg4 {[%clk 0:01:45]} 14. Nf2 {[%clk 0:01:41]}  Nxf2 {[%clk 0:01:30]} 15. Rxf2 {[%clk 0:01:41]}  c6 {[%clk 0:01:27]} 16. f5 {[%clk 0:01:37]}  d5 {[%clk 0:00:36]} 17. c5 {[%clk 0:01:26]}  d4 {[%clk 0:00:33]} 18. cxd4 {[%clk 0:00:49]}  Qxd4 {[%clk 0:00:27]} 19. Bb2 {[%clk 0:00:49]}  Qxc5 {[%clk 0:00:20]} 20. Bxf6 {[%clk 0:00:48]}  gxf6 {[%clk 0:00:21]} 21. d4 {[%clk 0:00:43]}  Qe7 {[%clk 0:00:13]} 22. Qh5 {[%clk 0:00:36]}  Kh7 {[%clk 0:00:11]} 23. Rf4 {[%clk 0:00:32]}  Bd7 {[%clk 0:00:03]} 24. Rh4 {[%clk 0:00:30]}  Qf8 {[%clk 0:00:03]} 25. Rxb7 {[%clk 0:00:28]}  Re7 {[%clk 0:00:03]} 26. Rf4 {[%clk 0:00:17]}  Rae8 {[%clk 0:00:03]} 27. h4 {[%clk 0:00:17]}  Re1+ {[%clk 0:00:03]} 28. Kh2 {[%clk 0:00:17]}  R1e7 {[%clk 0:00:03]} 29. Rf2 {[%clk 0:00:16]}  Qg7 {[%clk 0:00:03]} 30. Rxa7 {[%clk 0:00:15]}  Re3 {[%clk 0:00:03]} 31. Rf3 {[%clk 0:00:14]}  Rxf3 {[%clk 0:00:03]} 32. Qxf3 {[%clk 0:00:14]}  Re7 {[%clk 0:00:01]} 33. d5 {[%clk 0:00:13]}  cxd5 {[%clk 0:00:01]} 34. Qxd5 {[%clk 0:00:13]}  Be6 {[%clk 0:00:02]} 35. fxe6 {[%clk 0:00:11]}  Rxa7 {[%clk 0:00:02]} 36. Be4+ {[%clk 0:00:11]} 1-0


[Site "https://www.chess.com"]

[Event "Titled Tuesday Blitz March 21 Early 2023"]
[White "Ingebretsen, Jens E"]
[Black "TigranHH"]
[WhiteFideId "1522965"]
[WhiteElo "2213"]
[BlackElo "2289"]
[Result "1/2-1/2"]
[Round "04"]
[TimeControl "180+2"]
[Date "2023.03.21"]
[WhiteClock "0:00:16"]
[BlackClock "0:00:16"]

1. Nf3 {[%clk 0:03:00]}  d5 {[%clk 0:02:56]} 2. e3 {[%clk 0:03:01]}  Nf6 {[%clk 0:02:54]} 3. c4 {[%clk 0:03:02]}  e6 {[%clk 0:02:54]} 4. Nc3 {[%clk 0:03:02]}  Nbd7 {[%clk 0:02:54]} 5. d4 {[%clk 0:03:02]}  c6 {[%clk 0:02:52]} 6. Be2 {[%clk 0:03:03]}  Bd6 {[%clk 0:02:53]} 7. O-O {[%clk 0:03:03]}  O-O {[%clk 0:02:53]} 8. b3 {[%clk 0:03:03]}  Qe7 {[%clk 0:02:52]} 9. Bb2 {[%clk 0:03:04]}  dxc4 {[%clk 0:02:48]} 10. Bxc4 {[%clk 0:03:03]}  e5 {[%clk 0:02:49]} 11. dxe5 {[%clk 0:02:55]}  Nxe5 {[%clk 0:02:49]} 12. Be2 {[%clk 0:02:43]}  Rd8 {[%clk 0:02:48]} 13. Qc2 {[%clk 0:02:42]}  Bg4 {[%clk 0:02:39]} 14. Nd4 {[%clk 0:02:37]}  Bxe2 {[%clk 0:02:28]} 15. Ncxe2 {[%clk 0:02:35]}  g6 {[%clk 0:02:08]} 16. h3 {[%clk 0:02:28]}  Nd5 {[%clk 0:01:53]} 17. Rad1 {[%clk 0:02:25]}  Qh4 {[%clk 0:01:38]} 18. f4 {[%clk 0:02:20]}  Nd7 {[%clk 0:01:31]} 19. Rf3 {[%clk 0:02:14]}  Re8 {[%clk 0:01:25]} 20. e4 {[%clk 0:02:05]}  Nb4 {[%clk 0:01:24]} 21. Qb1 {[%clk 0:02:01]}  Nc5 {[%clk 0:01:12]} 22. e5 {[%clk 0:01:57]}  Bf8 {[%clk 0:01:13]} 23. a3 {[%clk 0:01:42]}  Nd5 {[%clk 0:01:09]} 24. b4 {[%clk 0:01:43]}  Ne6 {[%clk 0:01:02]} 25. Nxe6 {[%clk 0:01:40]}  Rxe6 {[%clk 0:01:03]} 26. Nd4 {[%clk 0:01:34]}  Ree8 {[%clk 0:00:57]} 27. Qe4 {[%clk 0:01:26]}  Bg7 {[%clk 0:00:53]} 28. Rdf1 {[%clk 0:01:25]}  Rxe5 {[%clk 0:00:40]} 29. Qd3 {[%clk 0:01:23]}  Ree8 {[%clk 0:00:36]} 30. b5 {[%clk 0:01:22]}  Nb6 {[%clk 0:00:20]} 31. bxc6 {[%clk 0:01:15]}  bxc6 {[%clk 0:00:21]} 32. f5 {[%clk 0:01:09]}  Be5 {[%clk 0:00:17]} 33. fxg6 {[%clk 0:01:04]}  fxg6 {[%clk 0:00:14]} 34. Nxc6 {[%clk 0:00:37]}  Bxb2 {[%clk 0:00:13]} 35. Qb3+ {[%clk 0:00:37]}  Qc4 {[%clk 0:00:12]} 36. Rf8+ {[%clk 0:00:23]}  Rxf8 {[%clk 0:00:11]} 37. Ne7+ {[%clk 0:00:23]}  Kg7 {[%clk 0:00:08]} 38. Qxb2+ {[%clk 0:00:24]}  Kh6 {[%clk 0:00:08]} 39. Qd2+ {[%clk 0:00:23]}  Kg7 {[%clk 0:00:08]} 40. Qb2+ {[%clk 0:00:20]}  Kh6 {[%clk 0:00:08]} 41. Qd2+ {[%clk 0:00:17]}  Kg7 {[%clk 0:00:08]} 42. Re1 {[%clk 0:00:09]}  Qc5+ {[%clk 0:00:07]} 43. Kh1 {[%clk 0:00:08]}  Rad8 {[%clk 0:00:07]} 44. Qb2+ {[%clk 0:00:08]}  Qd4 {[%clk 0:00:08]} 45. Qe2 {[%clk 0:00:08]}  Rf7 {[%clk 0:00:07]} 46. Qe6 {[%clk 0:00:08]}  Qd6 {[%clk 0:00:06]} 47. Qe4 {[%clk 0:00:07]}  Re8 {[%clk 0:00:07]} 48. Nf5+ {[%clk 0:00:07]}  gxf5 {[%clk 0:00:05]} 49. Qxe8 {[%clk 0:00:08]}  Qf6 {[%clk 0:00:04]} 50. Qe2 {[%clk 0:00:06]}  f4 {[%clk 0:00:05]} 51. Qf3 {[%clk 0:00:07]}  Nd7 {[%clk 0:00:05]} 52. Re4 {[%clk 0:00:07]}  Ne5 {[%clk 0:00:05]} 53. Qd1 {[%clk 0:00:07]}  f3 {[%clk 0:00:05]} 54. gxf3 {[%clk 0:00:07]}  Qxf3+ {[%clk 0:00:06]} 55. Qxf3 {[%clk 0:00:07]}  Nxf3 {[%clk 0:00:07]} 56. Rg4+ {[%clk 0:00:08]}  Kf6 {[%clk 0:00:06]} 57. Ra4 {[%clk 0:00:08]}  Ne5 {[%clk 0:00:04]} 58. Ra6+ {[%clk 0:00:08]}  Kf5 {[%clk 0:00:04]} 59. Kg2 {[%clk 0:00:09]}  Kf4 {[%clk 0:00:04]} 60. Ra4+ {[%clk 0:00:09]}  Kf5 {[%clk 0:00:04]} 61. Kg3 {[%clk 0:00:10]}  Rb7 {[%clk 0:00:05]} 62. Ra5 {[%clk 0:00:10]}  Rc7 {[%clk 0:00:05]} 63. h4 {[%clk 0:00:10]}  h5 {[%clk 0:00:05]} 64. Kg2 {[%clk 0:00:10]}  Rg7+ {[%clk 0:00:05]} 65. Kf2 {[%clk 0:00:10]}  Rc7 {[%clk 0:00:05]} 66. Ke3 {[%clk 0:00:10]}  Kg4 {[%clk 0:00:04]} 67. Rxe5 {[%clk 0:00:09]}  Kxh4 {[%clk 0:00:04]} 68. Ra5 {[%clk 0:00:08]}  Kg4 {[%clk 0:00:03]} 69. Ra4+ {[%clk 0:00:09]}  Kg3 {[%clk 0:00:03]} 70. Ra6 {[%clk 0:00:08]}  Re7+ {[%clk 0:00:03]} 71. Kd2 {[%clk 0:00:08]}  h4 {[%clk 0:00:04]} 72. Rg6+ {[%clk 0:00:09]}  Kf2 {[%clk 0:00:03]} 73. Rf6+ {[%clk 0:00:09]}  Kg3 {[%clk 0:00:04]} 74. Rg6+ {[%clk 0:00:10]}  Kh2 {[%clk 0:00:04]} 75. Rh6 {[%clk 0:00:09]}  h3 {[%clk 0:00:04]} 76. Kc3 {[%clk 0:00:10]}  Kh1 {[%clk 0:00:04]} 77. Rxh3+ {[%clk 0:00:10]}  Kg2 {[%clk 0:00:04]} 78. Rh6 {[%clk 0:00:11]}  Rb7 {[%clk 0:00:04]} 79. Rf6 {[%clk 0:00:11]}  Kg3 {[%clk 0:00:05]} 80. Kc4 {[%clk 0:00:11]}  Kg4 {[%clk 0:00:05]} 81. Rf8 {[%clk 0:00:11]}  Kg5 {[%clk 0:00:05]} 82. a4 {[%clk 0:00:12]}  Kg6 {[%clk 0:00:06]} 83. Rf1 {[%clk 0:00:13]}  Kg5 {[%clk 0:00:05]} 84. Kc5 {[%clk 0:00:13]}  a5 {[%clk 0:00:05]} 85. Rd1 {[%clk 0:00:04]}  Rb4 {[%clk 0:00:05]} 86. Rd4 {[%clk 0:00:04]}  Rxd4 {[%clk 0:00:04]} 87. Kxd4 {[%clk 0:00:05]}  Kf6 {[%clk 0:00:05]} 88. Kc5 {[%clk 0:00:06]}  Ke7 {[%clk 0:00:06]} 89. Kb5 {[%clk 0:00:07]}  Kd7 {[%clk 0:00:06]} 90. Kxa5 {[%clk 0:00:07]}  Kc7 {[%clk 0:00:07]} 91. Ka6 {[%clk 0:00:08]}  Kb8 {[%clk 0:00:08]} 92. Kb6 {[%clk 0:00:08]}  Ka8 {[%clk 0:00:08]} 93. Ka6 {[%clk 0:00:09]}  Kb8 {[%clk 0:00:09]} 94. Kb6 {[%clk 0:00:10]}  Ka8 {[%clk 0:00:10]} 95. a5 {[%clk 0:00:10]}  Kb8 {[%clk 0:00:10]} 96. Kb5 {[%clk 0:00:11]}  Ka8 {[%clk 0:00:11]} 97. Ka4 {[%clk 0:00:12]}  Kb8 {[%clk 0:00:11]} 98. Kb4 {[%clk 0:00:13]}  Ka8 {[%clk 0:00:12]} 99. Kc4 {[%clk 0:00:14]}  Kb8 {[%clk 0:00:13]} 100. Kb4 {[%clk 0:00:15]}  Ka8 {[%clk 0:00:14]} 101. a6 {[%clk 0:00:15]}  Kb8 {[%clk 0:00:14]} 102. a7+ {[%clk 0:00:16]}  Ka8 {[%clk 0:00:15]} 103. Kb5 {[%clk 0:00:16]}  Kxa7 {[%clk 0:00:16]} 1/2-1/2


[Site "https://www.chess.com"]

[Event "Titled Tuesday Blitz March 21 Early 2023"]
[White "sebastianmarinp"]
[Black "Bodnaruk, Anastasia"]
[BlackFideId "4181751"]
[WhiteElo "2284"]
[BlackElo "2310"]
[Result "0-1"]
[Round "04"]
[TimeControl "180+2"]
[Date "2023.03.21"]
[WhiteClock "0:00:02"]
[BlackClock "0:00:03"]

1. e4 {[%clk 0:03:00]}  c5 {[%clk 0:02:58]} 2. Nf3 {[%clk 0:02:59]}  d6 {[%clk 0:02:58]} 3. d4 {[%clk 0:02:59]}  cxd4 {[%clk 0:02:59]} 4. Nxd4 {[%clk 0:03:00]}  Nf6 {[%clk 0:02:59]} 5. Nc3 {[%clk 0:03:00]}  a6 {[%clk 0:03:00]} 6. f3 {[%clk 0:03:00]}  e5 {[%clk 0:02:58]} 7. Nb3 {[%clk 0:03:00]}  Be7 {[%clk 0:02:58]} 8. Be3 {[%clk 0:03:00]}  Be6 {[%clk 0:02:57]} 9. Qd2 {[%clk 0:03:00]}  O-O {[%clk 0:02:57]} 10. O-O-O {[%clk 0:02:58]}  b5 {[%clk 0:02:56]} 11. g4 {[%clk 0:02:56]}  Nbd7 {[%clk 0:02:56]} 12. g5 {[%clk 0:02:54]}  Nh5 {[%clk 0:02:56]} 13. Nd5 {[%clk 0:02:47]}  Bxd5 {[%clk 0:02:55]} 14. exd5 {[%clk 0:02:47]}  f5 {[%clk 0:02:55]} 15. gxf6 {[%clk 0:02:44]}  Ndxf6 {[%clk 0:02:44]} 16. Bh3 {[%clk 0:02:41]}  a5 {[%clk 0:02:38]} 17. Be6+ {[%clk 0:02:29]}  Kh8 {[%clk 0:02:38]} 18. Qg2 {[%clk 0:02:19]}  a4 {[%clk 0:02:26]} 19. Nd2 {[%clk 0:02:19]}  a3 {[%clk 0:02:26]} 20. Nb3 {[%clk 0:01:36]}  Qc7 {[%clk 0:02:14]} 21. Rhg1 {[%clk 0:01:28]}  Ra4 {[%clk 0:02:10]} 22. bxa3 {[%clk 0:01:09]}  Rxa3 {[%clk 0:02:09]} 23. Kb2 {[%clk 0:01:07]}  Rfa8 {[%clk 0:02:08]} 24. Ra1 {[%clk 0:01:05]}  b4 {[%clk 0:01:45]} 25. Qd2 {[%clk 0:01:00]}  Qb7 {[%clk 0:01:29]} 26. Rg4 {[%clk 0:00:50]}  Nf4 {[%clk 0:01:23]} 27. Rxf4 {[%clk 0:00:40]}  exf4 {[%clk 0:01:23]} 28. Bxf4 {[%clk 0:00:38]}  Qa6 {[%clk 0:01:22]} 29. Nc1 {[%clk 0:00:34]}  Nh5 {[%clk 0:01:20]} 30. Bg5 {[%clk 0:00:31]}  Bxg5 {[%clk 0:01:13]} 31. Qxg5 {[%clk 0:00:32]}  Nf6 {[%clk 0:01:11]} 32. Qd2 {[%clk 0:00:31]}  Qc4 {[%clk 0:01:10]} 33. Nb3 {[%clk 0:00:27]}  Ne8 {[%clk 0:01:00]} 34. Bd7 {[%clk 0:00:20]}  Nc7 {[%clk 0:00:59]} 35. Bc6 {[%clk 0:00:20]}  Rf8 {[%clk 0:00:55]} 36. Rg1 {[%clk 0:00:17]}  Qc3+ {[%clk 0:00:46]} 37. Qxc3 {[%clk 0:00:15]}  bxc3+ {[%clk 0:00:46]} 38. Kxa3 {[%clk 0:00:16]}  Rxf3 {[%clk 0:00:40]} 39. Rg3 {[%clk 0:00:16]}  Rxg3 {[%clk 0:00:33]} 40. hxg3 {[%clk 0:00:17]}  h5 {[%clk 0:00:33]} 41. Nd4 {[%clk 0:00:17]}  g5 {[%clk 0:00:33]} 42. Ne6 {[%clk 0:00:17]}  h4 {[%clk 0:00:30]} 43. gxh4 {[%clk 0:00:11]}  gxh4 {[%clk 0:00:31]} 44. Nxc7 {[%clk 0:00:11]}  h3 {[%clk 0:00:31]} 45. Ne8 {[%clk 0:00:07]}  h2 {[%clk 0:00:31]} 46. Nxd6 {[%clk 0:00:08]}  h1=Q {[%clk 0:00:30]} 47. Kb3 {[%clk 0:00:07]}  Qa1 {[%clk 0:00:26]} 48. Nc4 {[%clk 0:00:06]}  Kg7 {[%clk 0:00:17]} 49. d6 {[%clk 0:00:06]}  Kf6 {[%clk 0:00:14]} 50. d7 {[%clk 0:00:06]}  Ke7 {[%clk 0:00:14]} 51. a4 {[%clk 0:00:05]}  Qb1+ {[%clk 0:00:07]} 52. Kxc3 {[%clk 0:00:05]}  Qb8 {[%clk 0:00:07]} 53. Bb5 {[%clk 0:00:04]}  Qc7 {[%clk 0:00:06]} 54. Kb4 {[%clk 0:00:04]}  Qb8 {[%clk 0:00:04]} 55. a5 {[%clk 0:00:03]}  Qh2 {[%clk 0:00:04]} 56. c3 {[%clk 0:00:02]}  Qg1 {[%clk 0:00:03]} 0-1


[Site "https://www.chess.com"]

[Event "Titled Tuesday Blitz March 21 Early 2023"]
[White "Timofeev, Artyom"]
[Black "Wahedi, Ahmad Siar"]
[WhiteFideId "4140419"]
[BlackFideId "4651260"]
[WhiteElo "2586"]
[BlackElo "2459"]
[Result "1-0"]
[Round "04"]
[TimeControl "180+2"]
[Date "2023.03.21"]
[WhiteClock "0:00:25"]
[BlackClock "0:00:20"]

1. e4 {[%clk 0:03:00]}  e6 {[%clk 0:02:57]} 2. Qe2 {[%clk 0:03:00]}  c5 {[%clk 0:02:57]} 3. Nf3 {[%clk 0:02:59]}  Nc6 {[%clk 0:02:57]} 4. g3 {[%clk 0:02:58]}  g6 {[%clk 0:02:57]} 5. Bg2 {[%clk 0:02:58]}  Bg7 {[%clk 0:02:57]} 6. c3 {[%clk 0:02:58]}  Nge7 {[%clk 0:02:57]} 7. h4 {[%clk 0:02:58]}  h6 {[%clk 0:02:56]} 8. O-O {[%clk 0:02:57]}  O-O {[%clk 0:02:54]} 9. d3 {[%clk 0:02:56]}  Rb8 {[%clk 0:02:50]} 10. Be3 {[%clk 0:02:56]}  d6 {[%clk 0:02:49]} 11. Nbd2 {[%clk 0:02:55]}  b5 {[%clk 0:02:49]} 12. d4 {[%clk 0:02:55]}  b4 {[%clk 0:02:48]} 13. dxc5 {[%clk 0:02:47]}  bxc3 {[%clk 0:02:48]} 14. bxc3 {[%clk 0:02:47]}  dxc5 {[%clk 0:02:45]} 15. Bxc5 {[%clk 0:02:42]}  Bxc3 {[%clk 0:02:44]} 16. Rac1 {[%clk 0:02:40]}  Bg7 {[%clk 0:02:44]} 17. Rfd1 {[%clk 0:02:33]}  Qa5 {[%clk 0:02:42]} 18. Nb3 {[%clk 0:02:29]}  Qa6 {[%clk 0:02:41]} 19. Qxa6 {[%clk 0:02:24]}  Bxa6 {[%clk 0:02:41]} 20. Bd6 {[%clk 0:02:24]}  Rbd8 {[%clk 0:02:18]} 21. Bf1 {[%clk 0:02:24]}  Bxf1 {[%clk 0:02:16]} 22. Kxf1 {[%clk 0:02:23]}  Rfe8 {[%clk 0:02:16]} 23. Nc5 {[%clk 0:02:13]}  Na5 {[%clk 0:02:10]} 24. Bxe7 {[%clk 0:01:51]}  Rxd1+ {[%clk 0:02:09]} 25. Rxd1 {[%clk 0:01:51]}  Rxe7 {[%clk 0:02:09]} 26. Rd8+ {[%clk 0:01:52]}  Kh7 {[%clk 0:02:09]} 27. Rc8 {[%clk 0:01:52]}  Nb7 {[%clk 0:02:07]} 28. e5 {[%clk 0:01:44]}  Nxc5 {[%clk 0:02:02]} 29. Rxc5 {[%clk 0:01:43]}  Rd7 {[%clk 0:02:00]} 30. Ra5 {[%clk 0:01:42]}  Bf8 {[%clk 0:01:59]} 31. Ke2 {[%clk 0:01:40]}  Kg7 {[%clk 0:01:58]} 32. Ra4 {[%clk 0:01:36]}  Bc5 {[%clk 0:01:57]} 33. Ne1 {[%clk 0:01:35]}  Bd4 {[%clk 0:01:54]} 34. Nd3 {[%clk 0:01:35]}  g5 {[%clk 0:01:52]} 35. h5 {[%clk 0:01:34]}  Rd5 {[%clk 0:01:48]} 36. f4 {[%clk 0:01:34]}  gxf4 {[%clk 0:01:47]} 37. gxf4 {[%clk 0:01:34]}  Bb6 {[%clk 0:01:47]} 38. Rc4 {[%clk 0:01:31]}  Ra5 {[%clk 0:01:46]} 39. a4 {[%clk 0:01:31]}  Rd5 {[%clk 0:01:46]} 40. Nb4 {[%clk 0:01:27]}  Rd7 {[%clk 0:01:40]} 41. Nc6 {[%clk 0:01:27]}  f6 {[%clk 0:01:36]} 42. a5 {[%clk 0:01:26]}  Bg1 {[%clk 0:01:30]} 43. Kf3 {[%clk 0:01:19]}  fxe5 {[%clk 0:01:19]} 44. Nxe5 {[%clk 0:01:19]}  Rd5 {[%clk 0:01:19]} 45. Rc7+ {[%clk 0:01:18]}  Kg8 {[%clk 0:01:17]} 46. a6 {[%clk 0:01:16]}  Bd4 {[%clk 0:01:15]} 47. Ke4 {[%clk 0:01:00]}  Kf8 {[%clk 0:00:45]} 48. Rb7 {[%clk 0:00:45]}  Ke8 {[%clk 0:00:39]} 49. Rh7 {[%clk 0:00:42]}  Rd6 {[%clk 0:00:36]} 50. Nc4 {[%clk 0:00:34]}  Rd5 {[%clk 0:00:31]} 51. Rxh6 {[%clk 0:00:34]}  Ke7 {[%clk 0:00:29]} 52. Ne5 {[%clk 0:00:29]}  Bb2 {[%clk 0:00:23]} 53. Rh7+ {[%clk 0:00:29]}  Ke8 {[%clk 0:00:23]} 54. Rxa7 {[%clk 0:00:28]}  Rd4+ {[%clk 0:00:22]} 55. Kf3 {[%clk 0:00:28]}  Ra4 {[%clk 0:00:21]} 56. h6 {[%clk 0:00:26]}  Bxe5 {[%clk 0:00:20]} 57. fxe5 {[%clk 0:00:26]}  Rh4 {[%clk 0:00:20]} 58. h7 {[%clk 0:00:25]} 1-0


[Site "https://www.chess.com"]

[Event "Titled Tuesday Blitz March 21 Early 2023"]
[White "Fier, Alexandr"]
[Black "Gulkov, Igor A."]
[WhiteFideId "2107139"]
[BlackFideId "4120973"]
[WhiteElo "2610"]
[BlackElo "2343"]
[Result "1-0"]
[Round "04"]
[TimeControl "180+2"]
[Date "2023.03.21"]
[WhiteClock "0:01:41"]
[BlackClock "0:00:02"]

1. b3 {[%clk 0:03:00]}  e5 {[%clk 0:02:58]} 2. Bb2 {[%clk 0:03:01]}  d6 {[%clk 0:02:58]} 3. g3 {[%clk 0:03:01]}  g6 {[%clk 0:02:58]} 4. Bg2 {[%clk 0:03:02]}  Bg7 {[%clk 0:02:57]} 5. c4 {[%clk 0:02:57]}  Nf6 {[%clk 0:02:57]} 6. Nc3 {[%clk 0:02:58]}  O-O {[%clk 0:02:55]} 7. e3 {[%clk 0:02:58]}  c6 {[%clk 0:02:53]} 8. Nge2 {[%clk 0:02:59]}  Re8 {[%clk 0:02:52]} 9. O-O {[%clk 0:02:58]}  d5 {[%clk 0:02:46]} 10. d4 {[%clk 0:02:55]}  e4 {[%clk 0:02:45]} 11. cxd5 {[%clk 0:02:50]}  cxd5 {[%clk 0:02:44]} 12. b4 {[%clk 0:02:50]}  h5 {[%clk 0:02:42]} 13. Qb3 {[%clk 0:02:49]}  h4 {[%clk 0:02:40]} 14. Nf4 {[%clk 0:02:49]}  Be6 {[%clk 0:02:32]} 15. Nxe6 {[%clk 0:02:48]}  Rxe6 {[%clk 0:02:32]} 16. Rac1 {[%clk 0:02:47]}  Nc6 {[%clk 0:02:30]} 17. Na4 {[%clk 0:02:44]}  b6 {[%clk 0:02:26]} 18. Rc2 {[%clk 0:02:42]}  Bf8 {[%clk 0:02:22]} 19. a3 {[%clk 0:02:40]}  Rd6 {[%clk 0:02:15]} 20. Rfc1 {[%clk 0:02:39]}  Ne7 {[%clk 0:02:14]} 21. Nc3 {[%clk 0:02:35]}  a6 {[%clk 0:02:12]} 22. b5 {[%clk 0:02:31]}  a5 {[%clk 0:02:09]} 23. a4 {[%clk 0:02:31]}  hxg3 {[%clk 0:02:05]} 24. hxg3 {[%clk 0:02:31]}  Nf5 {[%clk 0:01:59]} 25. Ba3 {[%clk 0:02:31]}  Rd7 {[%clk 0:01:58]} 26. Bxf8 {[%clk 0:02:31]}  Kxf8 {[%clk 0:01:57]} 27. Ne2 {[%clk 0:02:31]}  Kg7 {[%clk 0:01:53]} 28. Rc6 {[%clk 0:02:31]}  Ne7 {[%clk 0:01:50]} 29. R6c3 {[%clk 0:02:27]}  Rd6 {[%clk 0:01:49]} 30. Qc2 {[%clk 0:02:27]}  Ra7 {[%clk 0:01:37]} 31. Bh3 {[%clk 0:02:27]}  Ne8 {[%clk 0:01:32]} 32. Kg2 {[%clk 0:02:24]}  f5 {[%clk 0:01:31]} 33. Kg1 {[%clk 0:02:23]}  g5 {[%clk 0:01:31]} 34. Bg2 {[%clk 0:02:23]}  Rdd7 {[%clk 0:01:23]} 35. g4 {[%clk 0:02:19]}  fxg4 {[%clk 0:01:14]} 36. Ng3 {[%clk 0:02:20]}  Nf6 {[%clk 0:01:14]} 37. Bf1 {[%clk 0:02:14]}  Kg6 {[%clk 0:01:01]} 38. Be2 {[%clk 0:02:13]}  Nf5 {[%clk 0:00:50]} 39. Nxf5 {[%clk 0:02:04]}  Kxf5 {[%clk 0:00:50]} 40. Rc8 {[%clk 0:02:05]}  Qe7 {[%clk 0:00:47]} 41. Kg2 {[%clk 0:01:58]}  Rd8 {[%clk 0:00:29]} 42. Rxd8 {[%clk 0:01:57]}  Qxd8 {[%clk 0:00:29]} 43. Qc6 {[%clk 0:01:58]}  Rh7 {[%clk 0:00:20]} 44. Qc8+ {[%clk 0:01:51]}  Qxc8 {[%clk 0:00:19]} 45. Rxc8 {[%clk 0:01:52]}  Re7 {[%clk 0:00:17]} 46. Rb8 {[%clk 0:01:51]}  Re6 {[%clk 0:00:17]} 47. Rb7 {[%clk 0:01:51]}  Rd6 {[%clk 0:00:16]} 48. Rb8 {[%clk 0:01:48]}  Re6 {[%clk 0:00:16]} 49. Rh8 {[%clk 0:01:49]}  Rd6 {[%clk 0:00:16]} 50. Kg3 {[%clk 0:01:49]}  Rd7 {[%clk 0:00:14]} 51. Rf8 {[%clk 0:01:47]}  Kg6 {[%clk 0:00:14]} 52. Bxg4 {[%clk 0:01:47]}  Rc7 {[%clk 0:00:09]} 53. Be6 {[%clk 0:01:46]}  Rc1 {[%clk 0:00:07]} 54. Rb8 {[%clk 0:01:45]}  Ra1 {[%clk 0:00:05]} 55. Rxb6 {[%clk 0:01:44]}  Rxa4 {[%clk 0:00:05]} 56. Bxd5 {[%clk 0:01:45]}  Kf5 {[%clk 0:00:02]} 57. Be6+ {[%clk 0:01:44]}  Kg6 {[%clk 0:00:02]} 58. d5 {[%clk 0:01:41]} 1-0


[Site "https://www.chess.com"]

[Event "Titled Tuesday Blitz March 21 Early 2023"]
[White "Baches Garcia, Guillermo"]
[Black "Basso, Pier Luigi"]
[WhiteFideId "2209764"]
[BlackFideId "866970"]
[WhiteElo "2458"]
[BlackElo "2438"]
[Result "0-1"]
[Round "04"]
[TimeControl "180+2"]
[Date "2023.03.21"]
[WhiteClock "0:02:11"]
[BlackClock "0:02:25"]

1. e4 {[%clk 0:03:00]}  c6 {[%clk 0:02:49]} 2. c4 {[%clk 0:03:00]}  d5 {[%clk 0:02:48]} 3. exd5 {[%clk 0:03:01]}  cxd5 {[%clk 0:02:49]} 4. cxd5 {[%clk 0:03:02]}  Nf6 {[%clk 0:02:49]} 5. Nc3 {[%clk 0:03:02]}  Nxd5 {[%clk 0:02:44]} 6. Nf3 {[%clk 0:03:03]}  Nc6 {[%clk 0:02:43]} 7. Bb5 {[%clk 0:03:03]}  g6 {[%clk 0:02:41]} 8. O-O {[%clk 0:03:02]}  Bg7 {[%clk 0:02:42]} 9. Re1 {[%clk 0:02:58]}  O-O {[%clk 0:02:41]} 10. d4 {[%clk 0:02:56]}  Bg4 {[%clk 0:02:38]} 11. h3 {[%clk 0:02:32]}  Bxf3 {[%clk 0:02:36]} 12. Qxf3 {[%clk 0:02:33]}  Nxd4 {[%clk 0:02:30]} 13. Qd3 {[%clk 0:02:11]}  Nxc3 {[%clk 0:02:25]} 0-1


[Site "https://www.chess.com"]